Cogmind - Beta 14 @@@ ROGUE MODE // 2024.10.31 @ 00:01:30 Player: Xellophane Result: Destroyed by G-47 Trooper with Particle Gun Performance ------------- Evolutions (1) 500 Regions Visited (2) 400 Robots Destroyed (100) 500 Value Destroyed (2324) 2324 Prototype IDs (7) 140 Alien Tech Used (0) 0 Bonus (660) 660 TOTAL SCORE: 4524 Bonus ------- High Alert Combat Kills 660 Cogmind --------- Core Integrity 0/400 Matter 300/300 Energy 100/100 System Corruption 0% Temperature Cool (9) Movement Core (450) Ox8 Location -9/Materials Parts ------- > --- POWER (1) -------- (None) > --- PROPULSION (4) --- Improved Hover Unit Improved Hover Unit > --- UTILITY (2) ------ Cooling System Large Storage Unit > --- WEAPON (2) ------- Improved Medium Laser > --- INVENTORY (15) --- Wheel Large Storage Unit Large Storage Unit Visual Processing Unit Improved Terrain Scanner Tractor Beam Improved Medium Laser Mining Laser Peak State ------------ > --- POWER ------------ Improved Ion Engine > --- PROPULSION ------- Improved Hover Unit Improved Hover Unit Improved Hover Unit Improved Hover Unit > --- UTILITY ---------- Large Storage Unit Improved Terrain Scanner > --- WEAPON ----------- Particle Cannon Particle Cannon > --- INVENTORY -------- Light Ion Engine Light Ion Engine Light Treads Light Treads Wheel Heat Sink Large Battery Hardened Light Armor Plating Hardened Light Armor Plating Tractor Beam Small Laser Heavy Assault Rifle Rocket Launcher Mini Grenade Launcher Mining Laser [Rating: 20] Favorites ----------- Power Light Ion Engine Engine Light Ion Engine Power Core Light Nuclear Core Propulsion Light Treads Treads Light Treads Hover Unit Improved Hover Unit Utility Large Storage Unit Device Improved Terrain Scanner Storage Large Storage Unit Hackware Hacking Suite Protection Hardened Light Armor Plating Weapon Improved Medium Laser Energy Gun Improved Medium Laser Energy Cannon Particle Cannon Ballistic Gun Light Assault Rifle Launcher Grenade Launcher Build | -11 -10 -9 ------- Run | Yrd Mat Mat Slots Evolved 2 | . . 2 Power . | . . . Propulsion 2 | . . 2 Utility . | . . . Weapon . | . . . Parts Attached 58 | 7 16 35 Power 8 | 1 3 4 Engine 6 | 1 3 2 Core 2 | . . 2 Reactor . | . . . Propulsion 20 | 2 4 14 Treads 13 | 2 2 9 Leg . | . . . Wheel . | . . . Hover 7 | . 2 5 Flight . | . . . Utility 10 | 2 4 4 Device 3 | 1 1 1 Storage 4 | 1 2 1 Processor . | . . . Hackware 1 | . 1 . Protection 2 | . . 2 Artifact . | . . . Weapon 20 | 2 5 13 Energy Gun 7 | 1 . 6 Energy Cannon 3 | . 2 1 Ballistic Gun 3 | 1 1 1 Ballistic Cannon . | . . . Launcher 7 | . 2 5 Special Weapon . | . . . Impact Weapon . | . . . Slashing Weapon . | . . . Piercing Weapon . | . . . Special Melee Weapon . | . . . Unidentified Prototypes 1 | . . 1 Parts Lost 27 | . 5 22 Power 4 | . . 4 Propulsion 12 | . 2 10 Utility 3 | . 1 2 Weapon 8 | . 2 6 Highest Loss Streak 6 | . 4 6 To Critical Strikes . | . . . Average Slot Usage (%) 91 | . 99 88 Engine 9 | . 13 6 Core 2 | . . 3 Treads 26 | . 25 26 Hover 6 | . 1 9 Device 6 | . 11 4 Storage 12 | . 14 11 Protection 3 | . . 5 Energy Gun 8 | . 1 11 Energy Cannon 3 | . 2 4 Ballistic Gun 6 | . 12 3 Launcher 5 | . 10 2 Peak Build Rating 20 | 8 15 20 Average Rating 13 | 6 10 16 On Entrance 7 | . 8 15 Naked Turns . | . . . Heaviest Build 37 | 12 36 37 Greatest Support 80 | 40 40 80 Greatest Overweight (x) 10 | 3 2 10 Average Overweight (x) . | . . . Largest Inventory Capacity 15 | 8 15 15 Average Capacity 13 | 7 13 15 Most Carried 15 | 8 15 15 Average Carried 11 | 4 11 12 Final Capacity 15 | 8 15 15 Final Carried 12 | 8 12 8 Class Distribution -------------------- 100% | Mutant Dominant Class ---------------- Mutant | -10/Materials Mutant | -9/Materials Resources | -11 -10 -9 ----------- Run | Yrd Mat Mat Matter Collected 1603 | 316 397 890 Remotely 177 | 146 31 . Salvage Created 2593 | 335 598 1660 Parts 172 | 29 42 101 Haulers Intercepted 4 | . . 4 Recyclers Shooed 4 | . . 4 Parts Field Recycled . | . . . Retrieved Matter . | . . . Parts Self-Destructed . | . . . Prevented . | . . . Kills | -11 -10 -9 ------- Run | Yrd Mat Mat Combat Hostiles Destroyed 74 | . 25 49 Guns 27 | . 4 23 Cannons 6 | . 4 2 AOE 41 | . 17 24 Classes Destroyed 14 | 3 5 6 Worker 4 | 4 . . Builder 5 | . 1 4 Tunneler 10 | 9 . 1 Hauler 4 | . . 4 Recycler 3 | 1 . 2 Mechanic 2 | . . 2 Operator 2 | . 1 1 Watcher 6 | . 3 3 Swarmer 15 | . 9 6 Grunt 50 | . 16 34 Brawler 1 | . . 1 Duelist 2 | . . 2 Protector 1 | . . 1 Sentry 5 | . . 5 Best Kill Streak 13 | 3 8 13 Combat Bots Only 11 | . 7 11 Max Kills in Single Turn 4 | 1 2 4 Gunslinging . | . . . Exploded 3 | . 2 3 Melee . | . . . Uniques/NPCs Destroyed . | . . . Combat | -11 -10 -9 -------- Run | Yrd Mat Mat Hostile Shots Fired 389 | . 90 299 Missed 120 | . 34 86 Damage Taken 3576 | . 729 2847 Core 597 | . 184 413 Absorbed by Shields . | . . . Regen/Repaired (Parts) 139 | . . 139 Core Remaining (%) 63 | 100 26 . Volleys Fired 252 | 46 64 142 Largest 2 | 2 2 2 Hottest 136 | 70 136 136 Shots Fired 427 | 86 108 233 Gun 329 | 86 66 177 Cannon 35 | . 20 15 Launcher 63 | . 22 41 Special . | . . . Kinetic 156 | 46 53 57 Thermal 208 | 40 33 135 Explosive 63 | . 22 41 Electromagnetic . | . . . Robot Hit Streak 10 | 6 7 10 Robot Miss Streak 4 | 4 4 4 Penetration Max . | . . . Secondary Targets 1 | . . 1 Max Gunslinging Chain 1 | . . 1 Shots Hit Robots 239 | 45 54 140 Core Hits 177 | 21 42 114 Critical Kills 1 | . 1 . Critical Parts Destroyed . | . . . Critical Strikes 14 | 3 2 9 Burn 13 | 3 1 9 Destroy 1 | . 1 . Melee Attacks . | . . . Impact . | . . . Slashing . | . . . Piercing . | . . . Sneak Attacks . | . . . Combat Hostiles . | . . . Follow-up Attacks . | . . . Damage Inflicted 8197 | 488 1833 5876 Guns 2840 | 488 319 2033 Cannons 473 | . 288 185 Explosions 4884 | . 1226 3658 Melee . | . . . Ramming . | . . . Kinetic 993 | 206 217 570 Thermal 2409 | 282 390 1737 Explosive 4795 | . 1226 3569 Electromagnetic . | . . . Impact . | . . . Slashing . | . . . Piercing . | . . . Highest Corruption . | . . . Average Corruption . | . . . Corruption Purged . | . . . Corruption Blocked . | . . . Overload Shots . | . . . Overflow Damage 127 | . 49 78 Projectiles 10 | . 10 . Explosions 117 | . 39 78 Melee . | . . . Knockbacks . | . . . Impact . | . . . Kinetic . | . . . Secondary . | . . . Self-Inflicted Damage 453 | . 159 294 Shots 18 | . 7 11 Rammed . | . . . Targets Rammed . | . . . Kicked . | . . . Crushed . | . . . Highest Temperature 458 | 110 444 458 Average Temperature 105 | 33 112 122 Received Heat Transfer 1446 | . 246 1200 Effects 14 | . 6 8 Shutdowns 2 | . 1 1 Interference 8 | . 3 5 Short Circuit 2 | . . 2 Damage (minor) 2 | . 2 . Siege Activations . | . . . Robots Corrupted . | . . . Combat Hostiles . | . . . Parts Fried . | . . . Impact Corruptions . | . . . Robots Melted . | . . . Combat Hostiles . | . . . Parts Melted 9 | . 3 6 Heat Transferred 6149 | 1036 888 4225 Parts Sabotaged . | . . . Parts Stolen . | . . . Parts Stripped . | . . . Power Chain Reactions . | . . . Alert | -11 -10 -9 ------- Run | Yrd Mat Mat Peak Influence 1330 | 70 548 1330 Initial 177 | . 45 177 Average 482 | 32 332 612 Maximum Alert Level 4 | . 2 4 Low Security (%) 26 | 100 23 19 Level 1 20 | . 35 14 Level 2 27 | . 41 23 Level 3 11 | . . 19 Level 4 14 | . . 23 Level 5 . | . . . High Security . | . . . Max Security . | . . . Squads Dispatched 19 | . 7 12 Investigation 12 | . 7 5 Extermination . | . . . Reinforcement 3 | . . 3 Assault 4 | . . 4 Garrison . | . . . Intercept . | . . . Searches Triggered . | . . . Construction Impeded 1 | . . 1 Haulers Reinforced . | . . . Active Scanning Responses . | . . . Cargo Convoy Interrupts . | . . . Stealth | -11 -10 -9 --------- Run | Yrd Mat Mat Distress Signals 12 | . 3 9 Communications Jammed . | . . . Distress Signals . | . . . Times Spotted 126 | . 31 95 Peak Tracking Total 13 | . 3 13 Tactical Retreats 6 | . 2 4 Traps | -11 -10 -9 ------- Run | Yrd Mat Mat Traps Triggered 4 | . 3 1 Indirectly . | . . . Trap Hack Attempts . | . . . Triggered . | . . . Disarmed . | . . . Reprogrammed 3 | . 3 . Reused 1 | . 1 . Traps Extracted . | . . . Installed . | . . . Triggered 1 | . 1 . Machines | -11 -10 -9 ---------- Run | Yrd Mat Mat Machines Disabled 10 | . 4 6 Max in Single Turn 2 | . 2 1 Machines Repaired . | . . . Machines Dismantled . | . . . Machines Sabotaged . | . . . Overloaded Fab Kills . | . . . Hacking | -11 -10 -9 --------- Run | Yrd Mat Mat Machines Accessed 16 | . 8 8 Terminals 9 | . 5 4 Fabricators . | . . . Repair Stations 3 | . 1 2 Recycling Units 4 | . 2 2 Scanalyzers . | . . . Garrison Access . | . . . Total Hacks 51 | . 24 27 Successful 28 | . 12 16 Failed 23 | . 12 11 Catastrophic 4 | . 3 1 Database Lockouts . | . . . Manual . | . . . Terminals 28 | . 16 12 Fabricators . | . . . Repair Stations 13 | . 3 10 Recycling Units 10 | . 5 5 Scanalyzers . | . . . Garrison Access . | . . . Terminal Hacks 11 | . 6 5 Prototype ID Bank 3 | . 2 1 Terminal Index 1 | . 1 . Reprogram Traps 1 | . 1 . Security Status 1 | . . 1 Reinforcement Status 1 | . 1 . Recall Reinforcements 1 | . 1 . Hauler Manifests 2 | . . 2 Registered Components 1 | . . 1 Fabricator Hacks . | . . . Repair Station Hacks 8 | . 1 7 Scan Component 6 | . 1 5 Repair 2 | . . 2 Recycling Unit Hacks 9 | . 5 4 Process 2 | . 1 1 Report Inventory 6 | . 3 3 Retrieve Components 1 | . 1 . Scanalyzer . | . . . Garrison Access Hacks . | . . . Unauthorized Hacks . | . . . Terminals . | . . . Fabricators . | . . . Repair Stations . | . . . Recycling Units . | . . . Scanalyzers . | . . . Garrison Access . | . . . Data Cores Recovered 1 | . . 1 Used 1 | . . 1 Hacking Detections 13 | . 6 7 Full Trace Events 10 | . 5 5 Feedback Events . | . . . Feedback Blocked . | . . . Robot Schematics Acquired . | . . . Robots Built . | . . . Authchips . | . . . Time . | . . . Total Robot Build Rating . | . . . Part Schematics Acquired . | . . . Parts Built . | . . . Authchips . | . . . Time . | . . . Total Part Build Rating . | . . . Parts Repaired 2 | . . 2 Time 115 | . . 115 Parts Recycled . | . . . Recycled Matter 176 | . 44 132 Retrieved Matter . | . . . Retrieved Components 3 | . 3 . Parts Scanalyzed . | . . . Part Schematics Acquired . | . . . Parts Damaged . | . . . Bothacking | -11 -10 -9 ------------ Run | Yrd Mat Mat Used RIF Installer . | . . . Robots Hacked . | . . . Non-combat . | . . . Combat . | . . . Robot Hacks Applied . | . . . Relay Couplers Released . | . . . Fabnet Peak Effective % . | . . . Robots Rewired . | . . . Allies Hacked . | . . . Hacks Repelled . | . . . Allies | -11 -10 -9 -------- Run | Yrd Mat Mat Total Allies . | . . . Largest Group . | . . . Highest-Rated Group . | . . . Highest-Rated Ally . | . . . Total Orders . | . . . Ally Attacks . | . . . Total Damage . | . . . Kills . | . . . Allies Corrupted . | . . . Allies Melted . | . . . Intel | -11 -10 -9 ------- Run | Yrd Mat Mat Robot Analysis Total . | . . . Derelict Logs Recovered . | . . . Drone Launches . | . . . Drone Recoveries . | . . . Exploration | -11 -10 -9 ------------- Run | Yrd Mat Mat Turns Passed 5292 | 363 1707 3222 Spaces Moved 2716 | 143 932 1641 Core 77 | 18 . 59 Treads 2453 | 125 881 1447 Legs . | . . . Wheels . | . . . Hover 186 | . 51 135 Flight . | . . . Fastest Speed 50 | 50 160 108 Average Speed 165 | 155 161 168 Slowest Speed 550 | 200 240 550 Overloaded Moves . | . . . Propulsion Burnouts . | . . . Robots Hopped . | . . . Cave-ins Triggered . | . . . Exploration Rate (%) 63 | 8 97 85 Regions Visited 2 Branch Regions . Pre-discovered Areas . | . . . Known Exits Taken . | . . . Unknown Exits Taken 2 | 1 1 . Scrap Searched . | . . . Spaces Dug 6 | . 6 . Terrain Destroyed 384 | . 125 259 Melee . | . . . Projectile . | . . . AOE 384 | . 125 259 Terrain Rammed . | . . . Walls Destroyed . | . . . Machines Disabled . | . . . Actions | -11 -10 -9 --------- Run | Yrd Mat Mat Total 3108 | 205 1040 1863 Wait 22 | . . 22 Move 2714 | 142 931 1641 Hop . | . . . Pick Up 43 | 9 18 16 Fast Attach 18 | 7 6 5 Attach 23 | . 5 18 Detach 2 | . . 2 Swap 17 | . 5 12 Drop 17 | 1 11 5 Fire 252 | 46 64 142 Melee . | . . . Ram . | . . . Kick . | . . . Crush . | . . . Escape Stasis . | . . . Rewire . | . . . Trap . | . . . Miscellaneous . | . . . Route ------- -11/Scrapyard -10/Materials (discovered 4 exits: *Mat x3 / [*Min]) -9/Materials (discovered 4 exits: [*Mat x3] / [*Min]) History --------- Turn | Location | Event 25 | -11/Scrapyard | Discovered new exit (range 16) 364 | -11/Scrapyard | Entered Materials 365 | -10/Materials | Build established: Mutant 465 | -10/Materials | Discovered new exit (range 11) 918 | -10/Materials | Discovered new exit (range 10) 947 | -10/Materials | Destroyed 7 combat bots 1266 | -10/Materials | Discovered new exit (range 14) 1944 | -10/Materials | Core integrity fell below 50% 1979 | -10/Materials | Lost 4 parts (2n2w) 2027 | -10/Materials | Discovered new exit (range 16) 2071 | -10/Materials | Entered another Materials area 2071 | -9/Materials | Evolved 2 slots: Propulsion x2 3430 | -9/Materials | Discovered new exit (range 5) 3702 | -9/Materials | Discovered new exit (range 10) 4015 | -9/Materials | Lost 3 parts (2n1u) 4228 | -9/Materials | Discovered new exit (range 15) 4381 | -9/Materials | Discovered new exit (range 8) 4383 | -9/Materials | Repaired Broken Imp. Medium Laser? 4471 | -9/Materials | First assault squad dispatched 4493 | -9/Materials | Repaired Imp. Medium Laser? 4519 | -9/Materials | Core integrity fell below 50% 4571 | -9/Materials | Destroyed 11 combat bots 4971 | -9/Materials | Core integrity fell below 20% 5019 | -9/Materials | Lost 6 parts (1p3n1u1w) 5293 | -9/Materials | Destroyed by G-47 Trooper with Particle Gun Last Messages --------------- 05033_ U-05 Engineer lays Concrete. 05034_ K-01 Serf collects debris. 05034_ U-05 Engineer lays Concrete. 05037_ U-05 Engineer builds a Wall. 05039_ Acquired 7 matter. 05042_ U-05 Engineer lays Concrete. 05044_ U-05 Engineer builds a Wall. 05060_ U-05 Engineer lays Concrete. 05069_ Acquired 57 matter. Experienced players can activate Tactical HUD mode in the options menu, or press Ctrl-F7, for more detailed HUD info. 05271_ ALERT: Significant disruption in Zone 9Z, assault force dispatched. 05276_ C-30 ARC bursts open, deploying its payload. 05276_ G-47 Trooper unfolds itself. 05276_ L-31 Rogue unfolds itself. 05276_ G-34 Mercenary unfolds itself. 05276_ I-25 Savior unfolds itself. 05276_ Critical hit (Burn: +37). 05278_ Imp. Medium Laser destroyed. 05290_ Imp. Hover Unit destroyed. Map ----- +----------------------------------------------------+ | ??????????# #?????????????????????????? | | ??????????# < #???????????##########????? | | ??????????# #???????????# #????? | | ??????????# #???????????# """#????? | | ???????????# #????????????# R"#????? | | ?????######## ###???????????# """#????? | | ?????# # # #???????????# #????? | | ?????#!!! + + #???????????#""" #????? | | ?????#!! # # #?#####?????#""" #????? | | ?????#!! # ###?#"""#?????#""" ! #????? | | ?????# ?# #???#"R"#?????# #????? | | ?????# ?# #####" "###########+######### | | ?????#####?## u^ | | ???????????#" ^ | | ???????????#T "" ^ | | ???????????#" "Y " " t######## ######## | | ???????###### "" " " #??????# #??????? | | ???????# "" #??????# #??????# | | ???????# #??????# #######" | | ######## ! #??????# | | # # ####### #??????# | | # "" # #??????# " | | # ""S + ###############%" " | | # "" # % + #" "" | | # # # ######## """ !# "" | | # % # @######??????# """ # "" | | ####### # # l##??????????# """ # " | | ??????## # # T#??????????# / | | ???????# #######% ##?########## # | | ???????# % #??# # /! # " | | ???######+######## #??# = # /??# "" | | ???# % # #??# # ???# "" | | ???# "" #g #??# !!! # ???# "" | | ???# ""S # gi#??# !!! # ??# " | | ???# "" ## #?## %% # ???# | | ???# " # #?## # ???# | | ???# ## #### ## ##### # | | ??# # #%%%#?## ### # ## # | | ??################% !#########+######## # | | ??????????# % # | | ??????????# < % # | | ??????????# % # | | ??????????# #########+####### ##### # | | ??????????# #?????# # * # # # " # | | ??????????#%#?????# !!!## # # " # | | ??????????# #?????# !!!#### = " # | | ??????????# #?????# !!!## " + | | ??????????# #?????# ### " # | | ??????????# #?????# #?# " # | | ??????????# #?????########### " " + | +----------------------------------------------------+ Best States ------------- Heat Dissipation 50 Energy Generation 14 Energy Capacity 265 Matter Stores 300 Matter Capacity 300 Sight Range 16 Terrain Scan Range 16 Terrain Scan Density 10 Armor Coverage 150 Evasion (%) 40 Recoil Reduction 4 Offensive Hacking 10 Item Schematics ----------------- None Robot Schematics ------------------ None Fabricated ------------ Nothing Alien Tech Used ----------------- None Achievements -------------- Dynamic Key Loot Pinata Remodeling Risk Taker Significant Disruption Use The Force Challenges ------------ None Game ------ Seed FactorySlugBuckler Manual? 0 Play Time 01:08:43 Cumulative 2.3 hours Start 2024.10.30 @ 18:07:40 End 2024.10.31 @ 00:01:30 Sessions 4 Manual Loads 0 Difficulty Rogue Special Mode None Game No. 4 Rogue 4 Adventurer 0 Explorer 0 Win Type - Total 0 Types 0/0/0/0/0/0/0/0/0 Lore% 0 Gallery% 4 Achievement% 6 Wizard Run 0 Options --------- Layout 0 ASCII 0 Keyboard 1 Movement Numpad Keybinds 0 Fullscreen 2 Font 18/SmallcapsGlow Map View 76x50 Zoom Use 0% Tactical HUD 1 Map Filters NONE Filters NONE Steam 1 RUN: 274e8613-162a-41d8-af02-514ce4a1039d